Cogmind - Beta 10.2 @@@ ROGUE MODE // 2021.07.24 @ 21:41:58 Player: zapruda Result: Destroyed by S-27 Virus with Autogun Performance ------------- Evolutions (5) 2500 Regions Visited (7) 1400 Robots Destroyed (107) 535 Value Destroyed (2818) 2818 Prototype IDs (19) 380 Alien Tech Used (0) 0 Bonus (745) 745 TOTAL SCORE: 8378 Bonus ------- High Alert Combat Kills 745 Cogmind --------- Core Integrity 0/1000 Matter 5/300 Energy 197/315 System Corruption 2% Temperature Cool (52) Movement Core (400) Ox7 Location -5/Factory Parts ------- > --- POWER (1) -------- Neutrino Core > --- PROPULSION (2) --- (None) > --- UTILITY (12) ----- System Shield Advanced System Shield > --- WEAPON (2) ------- Mass Driver > --- INVENTORY (4) ---- (None) Peak State ------------ > --- POWER ------------ Micro Fission Core > --- PROPULSION ------- Antigrav System Linear Gravjet > --- UTILITY ---------- Power Amplifier Improved Cryofiber Web Small Storage Unit Advanced Weight Redist. System Enhanced Optical Array Long-range Sensor Array Advanced Signal Interpreter Experimental Targeting Computer Improved Core Shielding Hacking Suite Hacking Suite System Shield > --- WEAPON ----------- Tiamat Missile Launcher Lance > --- INVENTORY -------- Field Propulsion Drive Overload Amplifier Overload Regulator Advanced Drone Bay Neutron Cannon [Rating: 79] Favorites ----------- Power Light Nuclear Core Engine Improved Ion Engine Power Core Light Nuclear Core Reactor Light Antimatter Reactor Propulsion Light Treads Treads Light Treads Leg Aluminum Leg Hover Unit Hover Unit Flight Unit Improved Flight Unit Utility Hacking Suite Device Advanced Weight Redist. System Storage Small Storage Unit Processor Advanced Signal Interpreter Hackware Hacking Suite Protection Improved Core Shielding Weapon Great Axe Energy Gun Beam Rifle Energy Cannon EM Pulse Cannon Ballistic Gun Heavy Assault Rifle Ballistic Cannon Mass Driver Launcher Advanced EMP Blaster Special Weapon Plasma Cutter Impact Weapon Shock Maul Slashing Weapon Great Axe Piercing Weapon Lance Special Melee Weapon Datajack Build | -11 -10 -9 -8 -7 -7 -7 -5 ------- Run | Scr Mat Mat Mat Fac Sto Rec Fac Slots Evolved 10 | . . 2 2 2 . . 4 Power . | . . . . . . . . Propulsion . | . . . . . . . . Utility 10 | . . 2 2 2 . . 4 Weapon . | . . . . . . . . Parts Attached 178 | . 7 46 30 22 3 9 61 Power 20 | . 1 5 3 1 . 2 8 Engine 11 | . . 5 2 . . 2 2 Core 8 | . 1 . 1 1 . . 5 Reactor 1 | . . . . . . . 1 Propulsion 39 | . 2 12 8 2 . 2 13 Treads 8 | . . 3 4 . . . 1 Leg 1 | . . . . . . . 1 Wheel . | . . . . . . . . Hover 11 | . . . 2 . . 2 7 Flight 19 | . 2 9 2 2 . . 4 Utility 64 | . 2 19 7 7 2 3 24 Device 40 | . 1 8 3 5 2 2 19 Storage 5 | . 1 3 . . . 1 . Processor 7 | . . 4 1 1 . . 1 Hackware 8 | . . 3 3 1 . . 1 Protection 4 | . . 1 . . . . 3 Artifact . | . . . . . . . . Weapon 55 | . 2 10 12 12 1 2 16 Energy Gun 15 | . 1 1 7 1 . 1 4 Energy Cannon 12 | . . 3 1 6 . . 2 Ballistic Gun 7 | . . 6 1 . . . . Ballistic Cannon 3 | . . . . . . . 3 Launcher 9 | . . . 3 2 1 . 3 Special Weapon 3 | . . . . 2 . . 1 Impact Weapon 2 | . . . . . . . 2 Slashing Weapon 1 | . . . . . . 1 . Piercing Weapon 1 | . . . . . . . 1 Special Melee Weapon 2 | . 1 . . 1 . . . Unidentified Prototypes 14 | . . 5 6 . . . 3 Parts Lost 62 | . 1 10 9 4 8 . 30 Power 7 | . . 2 1 . 1 . 3 Propulsion 17 | . 1 6 2 1 1 . 6 Utility 24 | . . 1 2 1 3 . 17 Weapon 14 | . . 1 4 2 3 . 4 Highest Loss Streak 9 | . 1 7 3 2 5 . 9 Average Slot Usage (%) 85 | . 93 75 91 98 77 83 79 Engine 4 | . 11 6 8 . . 4 1 Core 2 | . 2 2 . 7 6 . 2 Treads 4 | . . . 10 8 . . . Leg 1 | . 22 . . . . . . Hover 3 | . . . 2 . . 6 7 Flight 4 | . 2 19 2 6 3 . . Device 14 | . 7 16 8 12 12 16 20 Storage 2 | . 18 2 . . . 5 3 Processor 9 | . . 9 7 9 15 15 11 Hackware 22 | . . . 37 37 28 23 17 Energy Gun 4 | . 15 1 7 . 3 6 1 Energy Cannon 3 | . . 2 5 7 5 . 1 Ballistic Gun 1 | . 11 9 . . . . . Launcher 1 | . . . 2 3 . . . Naked Turns . | . . . . . . . . Heaviest Build 42 | 11 19 18 22 20 18 20 42 Greatest Support 59 | 20 20 46 42 42 18 21 59 Greatest Overweight (x) 7 | . 5 1 3 2 1 2 7 Average Overweight (x) . | . . . . . . . . Largest Inventory Capacity 10 | 6 10 8 4 4 4 6 6 Average Capacity 4 | 6 8 4 4 4 4 5 5 Most Carried 8 | 6 8 8 4 4 3 4 6 Average Carried 3 | 6 6 3 3 3 2 . 3 Final Capacity 6 | 6 4 4 4 4 4 6 4 Final Carried 6 | 6 3 4 4 3 . 4 . Class Distribution -------------------- 66% | Hacker-Mutant 13% | Hacker-Scout 10% | Mutant 4% | Scavenger-Mutant Dominant Class ---------------- Mutant | -10/Materials Mutant | -9/Materials Hacker-Mutant | -8/Materials Hacker-Mutant | -7/Factory Hacker-Scout | -7/Storage Hacker-Mutant | -7/Recycling Hacker-Mutant | -5/Factory Resources | -11 -10 -9 -8 -7 -7 -7 -5 ----------- Run | Scr Mat Mat Mat Fac Sto Rec Fac Matter Collected 2258 | 200 95 549 503 212 55 199 445 Remotely . | . . . . . . . . Salvage Created 3966 | . 233 905 1136 387 110 418 777 Parts 235 | . 10 68 78 22 4 12 41 Haulers Intercepted 12 | . . 4 6 1 . . 1 Recyclers Shooed 6 | . 1 . . . . 4 1 Parts Field Recycled . | . . . . . . . . Retrieved Matter . | . . . . . . . . Parts Self-Destructed . | . . . . . . . . Prevented . | . . . . . . . . Kills | -11 -10 -9 -8 -7 -7 -7 -5 ------- Run | Scr Mat Mat Mat Fac Sto Rec Fac Combat Hostiles Destroyed 68 | . 7 18 14 9 1 2 17 Melee 4 | . . . . . . 2 2 Guns 34 | . 7 18 8 . . . 1 Cannons 7 | . . . 2 2 1 . 2 AOE 23 | . . . 4 7 . . 12 Classes Destroyed 14 | . 3 4 3 1 . 1 2 Worker 9 | . 2 2 . 2 . . 3 Builder 6 | . . . 3 2 . . 1 Tunneler 1 | . . . . 1 . . . Hauler 12 | . . 4 6 1 . . 1 Recycler 6 | . . . 2 . 1 3 . Mechanic 1 | . . . 1 . . . . Drone 2 | . . . . . . 2 . Watcher 4 | . . 2 2 . . . . Swarmer 20 | . 5 7 3 4 . . 1 Saboteur 1 | . . . . . . . 1 Grunt 26 | . 2 5 4 3 . . 12 Duelist 2 | . . 1 . . . . 1 Sentry 15 | . . 5 7 2 1 . . Programmer 2 | . . . . . . . 2 Best Kill Streak 9 | . 4 5 9 8 1 1 7 Combat Bots Only 6 | . 3 4 4 4 1 1 6 Max Kills in Single Turn 3 | . 1 1 2 3 1 1 3 Gunslinging 1 | . . . 1 . . . . Exploded 2 | . . . 1 2 . . 2 Melee 1 | . . . . . . 1 1 Uniques/NPCs Destroyed . | . . . . . . . . Combat | -11 -10 -9 -8 -7 -7 -7 -5 -------- Run | Scr Mat Mat Mat Fac Sto Rec Fac Damage Taken 7537 | . 344 1432 1169 396 650 . 3546 Core 2141 | . 53 325 315 69 376 . 1003 Absorbed by Shields . | . . . . . . . . Core Remaining (%) 54 | 100 78 18 42 . . 36 . Volleys Fired 280 | . 36 100 64 21 11 17 31 Largest 2 | . 2 2 2 2 2 1 2 Hottest 160 | . 60 124 124 160 160 69 136 Shots Fired 364 | . 58 113 100 27 14 17 35 Gun 260 | . 58 105 59 3 3 17 15 Cannon 65 | . . 8 30 9 10 . 8 Launcher 34 | . . . 11 10 1 . 12 Special 5 | . . . . 5 . . . Kinetic 136 | . 35 99 . . . . 2 Thermal 147 | . 23 7 56 14 13 17 17 Explosive 30 | . . . 9 8 1 . 12 Electromagnetic 51 | . . 7 35 5 . . 4 Robot Hit Streak 14 | . 9 14 11 10 6 2 8 Robot Miss Streak 13 | . 13 5 5 3 3 6 3 Penetration Max . | . . . . . . . . Secondary Targets 6 | . 2 . 4 . . . . Max Gunslinging Chain 1 | . 1 . 1 . . . . Shots Hit Robots 254 | . 30 79 68 23 8 12 34 Core Hits 175 | . 14 38 42 22 5 8 46 Critical Hits 5 | . . 1 1 . 1 . 2 Critical Kills 2 | . . . 1 . . . 1 Critical Parts Destroyed 3 | . . 1 . . 1 . 1 Melee Attacks 49 | . 1 3 . 2 . 12 31 Impact 6 | . . . . . . . 6 Slashing 24 | . . . . . . 12 12 Piercing 13 | . . . . . . . 13 Sneak Attacks 8 | . 1 . . 2 . 3 2 Combat Hostiles . | . . . . . . . . Follow-up Attacks . | . . . . . . . . Damage Inflicted 8888 | . 304 1219 1929 1342 389 805 2900 Guns 2595 | . 304 1050 807 78 70 76 210 Cannons 1234 | . . 166 558 231 104 . 175 Explosions 3749 | . . . 559 1000 215 . 1975 Melee 1235 | . . . . . . 729 506 Ramming 42 | . . 3 5 . . . 34 Kinetic 1159 | . 113 1020 . . . . 26 Thermal 2041 | . 191 51 856 387 174 76 306 Explosive 3258 | . . . 326 742 215 . 1975 Electromagnetic 1153 | . . 145 742 213 . . 53 Impact 259 | . . . . . . . 259 Slashing 729 | . . . . . . 729 . Piercing 247 | . . . . . . . 247 Highest Corruption 2 | . 1 . . . . . 2 Average Corruption 1 | . 1 . . . . . 2 Corruption Purged . | . . . . . . . . Effects 3 | . 2 . . . . . 1 Heat Flow Errors 1 | . . . . . . . 1 Energy Discharges 1 | . 1 . . . . . . Weapon Failures 1 | . 1 . . . . . . Overload Shots . | . . . . . . . . Overflow Damage 604 | . . 5 27 120 . 292 160 Projectiles 5 | . . 5 . . . . . Explosions 307 | . . . 27 120 . . 160 Melee 292 | . . . . . . 292 . Knockbacks . | . . . . . . . . Impact . | . . . . . . . . Kinetic . | . . . . . . . . Secondary . | . . . . . . . . Self-Inflicted Damage 178 | . . . 78 68 . . 32 Shots 5 | . . . 3 1 . . 1 Rammed 18 | . . 4 1 . . . 13 Targets Rammed 18 | . . 4 1 . . . 13 Kicked . | . . . . . . . . Crushed . | . . . . . . . . Highest Temperature 572 | . 109 56 572 267 372 40 184 Average Temperature 109 | . 62 21 121 83 218 19 60 Received Heat Transfer 1881 | . 69 318 405 99 198 . 792 Effects 12 | . . . 11 . 1 . . Shutdowns 2 | . . . 1 . 1 . . Energy Bleed 1 | . . . 1 . . . . Matter Decay 1 | . . . 1 . . . . Damage (minor) 1 | . . . 1 . . . . Damage (major) 7 | . . . 7 . . . . Siege Activations . | . . . . . . . . Robots Corrupted 2 | . . . 2 . . . . Combat Hostiles . | . . . . . . . . Parts Fried 11 | . . 1 9 1 . . . Impact Corruptions . | . . . . . . . . Robots Melted . | . . . . . . . . Combat Hostiles . | . . . . . . . . Parts Melted 3 | . . . 1 . 2 . . Heat Transferred 3620 | . 425 111 1630 597 350 148 359 Parts Sabotaged 5 | . . . . . . . 5 Parts Stolen . | . . . . . . . . Parts Stripped . | . . . . . . . . Power Chain Reactions 2 | . . . 2 . . . . Missiles Intercepted . | . . . . . . . . Alert | -11 -10 -9 -8 -7 -7 -7 -5 ------- Run | Scr Mat Mat Mat Fac Sto Rec Fac Peak Influence 2113 | . 215 622 662 431 143 351 2113 Initial 977 | . . 90 262 156 131 55 977 Average 557 | . 83 324 399 267 136 177 1224 Maximum Alert Level 5 | . 1 2 2 2 . 1 5 Low Security (%) 24 | 100 81 19 . 43 100 72 . Level 1 30 | . 18 52 50 46 . 27 . Level 2 17 | . . 28 49 9 . . . Level 3 14 | . . . . . . . 49 Level 4 10 | . . . . . . . 35 Level 5 4 | . . . . . . . 15 High Security . | . . . . . . . . Max Security . | . . . . . . . . Squads Dispatched 16 | . . . 2 2 2 . 10 Investigation 3 | . . . 1 1 . . 1 Extermination 1 | . . . . . . . 1 Reinforcement 5 | . . . . 1 2 . 2 Assault 6 | . . . . . . . 6 Garrison 1 | . . . 1 . . . . Intercept . | . . . . . . . . Construction Impeded 3 | . . . . 1 1 . 1 Haulers Reinforced 1 | . . . . . . . 1 Stealth | -11 -10 -9 -8 -7 -7 -7 -5 --------- Run | Scr Mat Mat Mat Fac Sto Rec Fac Distress Signals 8 | . . 2 3 . 1 . 2 Communications Jammed . | . . . . . . . . Distress Signals . | . . . . . . . . Times Spotted 237 | . 9 41 33 12 11 25 106 Peak Tracking Total 22 | . 5 10 7 5 9 7 22 Tactical Retreats 34 | . 1 5 5 1 . . 22 Traps | -11 -10 -9 -8 -7 -7 -7 -5 ------- Run | Scr Mat Mat Mat Fac Sto Rec Fac Traps Triggered 4 | . 1 1 1 . . . 1 Indirectly . | . . . . . . . . Trap Hack Attempts . | . . . . . . . . Triggered . | . . . . . . . . Disarmed . | . . . . . . . . Reprogrammed 1 | . . . . 1 . . . Reused . | . . . . . . . . Traps Extracted . | . . . . . . . . Installed . | . . . . . . . . Triggered . | . . . . . . . . Machines | -11 -10 -9 -8 -7 -7 -7 -5 ---------- Run | Scr Mat Mat Mat Fac Sto Rec Fac Machines Disabled 15 | . . 1 3 7 . 2 2 Max in Single Turn 5 | . . 1 2 5 . 1 1 Machines Sabotaged . | . . . . . . . . Garrisons Compromised . | . . . . . . . . Overloaded Fab Kills . | . . . . . . . . Fab Network Shutdowns . | . . . . . . . . Hacking | -11 -10 -9 -8 -7 -7 -7 -5 --------- Run | Scr Mat Mat Mat Fac Sto Rec Fac Machines Accessed 27 | . . 2 5 7 1 7 5 Terminals 13 | . . . 3 3 1 3 3 Fabricators 2 | . . . . 1 . . 1 Repair Stations 1 | . . . 1 . . . . Recycling Units 7 | . . . . 2 . 4 1 Scanalyzers 3 | . . 2 1 . . . . Garrison Access 1 | . . . . 1 . . . Total Hacks 104 | . . 4 34 26 1 19 20 Successful 61 | . . . 24 13 1 11 12 Failed 43 | . . 4 10 13 . 8 8 Catastrophic 1 | . . . 1 . . . . Database Lockouts . | . . . . . . . . Manual 1 | . . . . . 1 . . Terminals 71 | . . . 22 18 1 12 18 Fabricators 3 | . . . . 2 . . 1 Repair Stations 4 | . . . 4 . . . . Recycling Units 11 | . . . . 3 . 7 1 Scanalyzers 12 | . . 4 8 . . . . Garrison Access 3 | . . . . 3 . . . Terminal Hacks 35 | . . . 12 8 1 4 10 Record 5 | . . . 4 . . . 1 Part Schematic 4 | . . . . 2 . 1 1 Prototype ID Bank 2 | . . . 1 1 . . . Open Door 1 | . . . . . 1 . . Branch Access Points 2 | . . . . 1 . . 1 Emergency Access Points 3 | . . . 2 . . . 1 Machine Index 1 | . . . . . . . 1 Terminal Index 3 | . . . 1 1 . 1 . Fabricator Index 1 | . . . . . . 1 . Alert Level 2 | . . . . 1 . . 1 Unreport Threat 2 | . . . 2 . . . . Reprogram Traps 1 | . . . . 1 . . . Investigation Status 1 | . . . . . . . 1 Reinforcement Status 2 | . . . 2 . . . . Registered Components 2 | . . . . . . 1 1 Registered Prototypes 1 | . . . . . . . 1 Zone Layout 2 | . . . . 1 . . 1 Fabricator Hacks 3 | . . . . 2 . . 1 Load Schematic 1 | . . . . 1 . . . Build 2 | . . . . 1 . . 1 Repair Station Hacks 4 | . . . 4 . . . . Scan Component 2 | . . . 2 . . . . Repair 2 | . . . 2 . . . . Recycling Unit Hacks 10 | . . . . 2 . 7 1 Report Inventory 7 | . . . . 2 . 4 1 Retrieve Components 3 | . . . . . . 3 . Scanalyzer 8 | . . . 8 . . . . Insert Component 4 | . . . 4 . . . . Analyze 4 | . . . 4 . . . . Garrison Access Hacks 1 | . . . . 1 . . . Coupler Status 1 | . . . . 1 . . . Unauthorized Hacks . | . . . . . . . . Terminals . | . . . . . . . . Fabricators . | . . . . . . . . Repair Stations . | . . . . . . . . Recycling Units . | . . . . . . . . Scanalyzers . | . . . . . . . . Garrison Access . | . . . . . . . . Data Cores Recovered . | . . . . . . . . Used . | . . . . . . . . Hacking Detections 16 | . . 2 3 4 . 3 4 Full Trace Events 4 | . . . 1 1 . 1 1 Feedback Events . | . . . . . . . . Feedback Blocked . | . . . . . . . . Robot Schematics Acquired . | . . . . . . . . Robots Built . | . . . . . . . . Matter . | . . . . . . . . Time . | . . . . . . . . Total Robot Build Rating . | . . . . . . . . Part Schematics Acquired 8 | . . . 4 2 . 1 1 Parts Built 2 | . . . . 2 . . . Matter 490 | . . . . 212 . . 278 Time 245 | . . . . 106 . . 139 Total Part Build Rating 12 | . . . . 12 . . . Parts Repaired 2 | . . . 2 . . . . Time 76 | . . . 76 . . . . Parts Recycled . | . . . . . . . . Recycled Matter . | . . . . . . . . Retrieved Matter . | . . . . . . . . Retrieved Components 5 | . . . . . . 5 . Parts Scanalyzed 4 | . . . 4 . . . . Part Schematics Acquired 4 | . . . 4 . . . . Parts Damaged . | . . . . . . . . Bothacking | -11 -10 -9 -8 -7 -7 -7 -5 ------------ Run | Scr Mat Mat Mat Fac Sto Rec Fac Used RIF Installer . | . . . . . . . . Robots Hacked 2 | . . 1 . 1 . . . Non-combat 2 | . . 1 . 1 . . . Combat . | . . . . . . . . Robot Hacks Applied 3 | . . 1 . 2 . . . parse_system 1 | . . 1 . . . . . no_distress 1 | . . . . 1 . . . find_fabricator 1 | . . . . 1 . . . Relay Couplers Released . | . . . . . . . . Robots Rewired . | . . . . . . . . Allies Hacked . | . . . . . . . . Hacks Repelled . | . . . . . . . . Allies | -11 -10 -9 -8 -7 -7 -7 -5 -------- Run | Scr Mat Mat Mat Fac Sto Rec Fac Total Allies . | . . . . . . . . Largest Group . | . . . . . . . . Highest-Rated Group . | . . . . . . . . Highest-Rated Ally . | . . . . . . . . Total Orders 3 | . . . . . . . 3 EXPLORE 3 | . . . . . . . 3 Ally Attacks . | . . . . . . . . Total Damage . | . . . . . . . . Kills . | . . . . . . . . Allies Corrupted . | . . . . . . . . Allies Melted . | . . . . . . . . Intel | -11 -10 -9 -8 -7 -7 -7 -5 ------- Run | Scr Mat Mat Mat Fac Sto Rec Fac Robot Analysis Total . | . . . . . . . . Derelict Logs Recovered . | . . . . . . . . Drone Launches 16 | . . . . . . . 16 Drone Recoveries 8 | . . . . . . . 8 Exploration | -11 -10 -9 -8 -7 -7 -7 -5 ------------- Run | Scr Mat Mat Mat Fac Sto Rec Fac Turns Passed 5231 | 3 311 680 1258 810 158 510 1501 Spaces Moved 4493 | 3 183 681 975 752 129 369 1401 Core 560 | . 11 8 32 . 84 206 219 Treads 652 | . . 11 398 233 . . 10 Legs 178 | 3 134 . . . . . 41 Wheels . | . . . . . . . . Hover 1296 | . . . 207 . . 163 926 Flight 1807 | . 38 662 338 519 45 . 205 Fastest Speed 32 | 120 37 32 32 37 40 50 40 Average Speed 71 | 120 107 38 92 73 62 79 66 Slowest Speed 400 | 120 300 160 200 220 100 150 400 Overloaded Moves . | . . . . . . . . Propulsion Burnouts . | . . . . . . . . Robots Hopped 5 | . . 1 2 2 . . . Cave-ins Triggered . | . . . . . . . . Exploration Rate (%) 41 | 2 31 56 78 25 23 78 35 Regions Visited 7 Branch Regions 2 Pre-discovered Areas . | . . . . . . . . Known Exits Taken 5 | . . 1 1 1 1 1 . Unknown Exits Taken 2 | 1 1 . . . . . . Scrap Searched . | . . . . . . . . Spaces Dug 27 | . . . 11 . . . 16 Terrain Destroyed 347 | . . . 70 85 27 . 165 Melee 16 | . . . . . . . 16 Projectile 10 | . . . . . 6 . 4 AOE 321 | . . . 70 85 21 . 145 Terrain Rammed . | . . . . . . . . Walls Destroyed . | . . . . . . . . Machines Disabled . | . . . . . . . . Actions | -11 -10 -9 -8 -7 -7 -7 -5 --------- Run | Scr Mat Mat Mat Fac Sto Rec Fac Total 6055 | 2 249 985 1226 970 190 547 1886 Wait 837 | . . 91 131 159 48 128 280 Move 4476 | 2 182 678 970 747 128 368 1401 Hop 5 | . . 1 2 2 . . . Pick Up 104 | . 9 28 11 6 . 10 40 Fast Attach 54 | . 1 15 21 8 . . 9 Attach 88 | . 5 23 6 4 3 8 39 Detach 14 | . 1 5 . 1 . 2 5 Swap 36 | . 1 8 3 10 . 1 13 Drop 94 | . 13 29 17 10 . 1 24 Fire 280 | . 36 100 64 21 11 17 31 Melee 49 | . 1 3 . 2 . 12 31 Ram 14 | . . . 1 . . . 13 Kick . | . . . . . . . . Crush 4 | . . 4 . . . . . Escape Stasis . | . . . . . . . . Rewire . | . . . . . . . . Trap . | . . . . . . . . Miscellaneous . | . . . . . . . . Route ------- -11/Scrapyard -10/Materials -9/Materials -8/Materials -7/Factory (discovered 5 exits: *Fac / *Sto x2 / *Low x2) -7/Storage -7/Recycling -5/Factory (discovered 2 exits: *Upp x2) History --------- Turn | Location | Event 1 | -11/Scrapyard | Discovered new exit (range 1) 4 | -11/Scrapyard | Entered Materials 273 | -10/Materials | Discovered new exit (range 11) 315 | -10/Materials | Entered another Materials area 315 | -9/Materials | Evolved 2 slots: Utility x2 326 | -9/Materials | Build established: Mutant 509 | -9/Materials | Lost 7 parts (1p5n1w) 734 | -9/Materials | Core integrity fell below 50% 924 | -9/Materials | Core integrity fell below 20% 964 | -9/Materials | Discovered new exit (range 4) 967 | -9/Materials | Identified exit to Materials 995 | -9/Materials | Entered another Materials area 995 | -8/Materials | Evolved 2 slots: Utility x2 1095 | -8/Materials | Garrison activated, responded to threat 1267 | -8/Materials | Lost 3 parts (2u1w) 1351 | -8/Materials | Lost 3 parts (1n2w) 1367 | -8/Materials | Core integrity fell below 50% 1462 | -8/Materials | Build established: Hacker-Mutant 2116 | -8/Materials | Repaired Adv. Sensor Array 2155 | -8/Materials | Repaired Adv. Treads 2238 | -8/Materials | Discovered new exit (range 5) 2251 | -8/Materials | Identified exit to Factory 2253 | -8/Materials | Entered Factory 2253 | -7/Factory | Evolved 2 slots: Utility x2 2603 | -7/Factory | Identified exit to Storage 2603 | -7/Factory | Identified exit to Lower Caves 2729 | -7/Factory | Fabricated Field Propulsion Drive (x2) 2954 | -7/Factory | Discovered new exit (range 22) 3002 | -7/Factory | Identified exit to Factory 3063 | -7/Factory | Entered Storage 3135 | -7/Storage | Build established: Hacker-Scout 3167 | -7/Storage | Lost 3 parts (1n1u1w) 3206 | -7/Storage | Core integrity fell below 50% 3219 | -7/Storage | Used back door to open Recycling access 3219 | -7/Storage | Discovered new exit (range 5) 3220 | -7/Storage | Identified exit to Recycling 3221 | -7/Storage | Entered Recycling 3234 | -7/Recycling | Lost 5 parts (1p2u2w) 3238 | -7/Recycling | Spotter reported a threat 3242 | -7/Recycling | Spotter reported a threat 3267 | -7/Recycling | Spotter reported a threat 3267 | -7/Recycling | Spotter reported a threat 3268 | -7/Recycling | Spotter reported a threat 3271 | -7/Recycling | Spotter reported a threat 3271 | -7/Recycling | Spotter reported a threat 3324 | -7/Recycling | Spotter reported a threat 3372 | -7/Recycling | Spotter reported a threat 3379 | -7/Recycling | Spotter reported a threat 3437 | -7/Recycling | Build established: Hacker-Mutant 3485 | -7/Recycling | Spotter reported a threat 3487 | -7/Recycling | Spotter reported a threat 3519 | -7/Recycling | Spotter reported a threat 3530 | -7/Recycling | Spotter reported a threat 3538 | -7/Recycling | Spotter reported a threat 3539 | -7/Recycling | Spotter reported a threat 3577 | -7/Recycling | Spotter reported a threat 3583 | -7/Recycling | Spotter reported a threat 3588 | -7/Recycling | Spotter reported a threat 3591 | -7/Recycling | Spotter reported a threat 3596 | -7/Recycling | Spotter reported a threat 3607 | -7/Recycling | Spotter reported a threat 3649 | -7/Recycling | Spotter reported a threat 3652 | -7/Recycling | Spotter reported a threat 3702 | -7/Recycling | Discovered new exit (range 11) 3708 | -7/Recycling | Identified exit to Factory 3731 | -7/Recycling | Spotter reported a threat 3731 | -7/Recycling | Spotter reported a threat 3731 | -7/Recycling | Entered Factory 3731 | -5/Factory | Evolved 4 slots: Utility x4 3868 | -5/Factory | Discovered new exit (range 53) 4031 | -5/Factory | First assault squad dispatched 4334 | -5/Factory | Identified exit to Upper Caves 4483 | -5/Factory | Found Prototype Processor 4483 | -5/Factory | Identified Exp. Targeting Computer 4515 | -5/Factory | Build established: Hacker-Scout 4623 | -5/Factory | Lost 7 parts (1p3n3u) 4825 | -5/Factory | Build established: Hacker-Mutant 4898 | -5/Factory | Lost 5 parts (1p3u1w) 4954 | -5/Factory | Core integrity fell below 50% 5015 | -5/Factory | Lost 6 parts (1p2n3u) 5210 | -5/Factory | Core integrity fell below 20% 5232 | -5/Factory | Destroyed by S-27 Virus with Autogun Last Messages --------------- 05183_ Slug penetrates Fabricator. 05183_ Slug penetrates Wall. 05187_ VTOL Module destroyed. 05188_ Plasma Cutter destroyed. 05195_ Lrn. Sensor Array destroyed. 05202_ Triangulator destroyed. 05210_ Penetrated by Slug. 05210_ Exp. Targeting Computer destroyed. 05213_ Penetrated by Slug. 05214_ Acquired Imp. Arc Projector. 05216_ Adv. Signal Interpreter destroyed. 05216_ Penetrated by Slug. 05221_ Hacking Suite destroyed. 05222_ Slug penetrates Wall. 05225_ Imp. Arc Projector destroyed. 05227_ System corrupted: Heat flow error (+203). 05228_ Slug penetrates S-27 Virus. 05228_ S-27 Virus destroyed. 05230_ Slug penetrates Wall. 05231_ ALERT: Significant disruption in Zone 9N, assault force dispatched. Map ----- +----------------------------------------------------+ | ? | | " ?? | | "%" ??? | | " ### ??? ###################/############ | | ???????????????????????# #??????? | | [! ??? ???????????????????# #??????? | | + [!???# ??????????????????# #??????? | | #??[!???+ ??????????????????# #??????? | | #???????# ?????????????????# #######? | | #???????# ????????????????# + #? | | #####???????# ???????????????# ##### #? | | ????????????# ################ #???# #? | | ????????????# / #???# #? | | ????????????# ###+######???# #? | | ????????????# ###%#####????# #? | | ????????????# #????# #? | | ????????????# ##### ######+#? | | ????????????##########+####### # #? | | ????????????????# # # """ #? | | ????????????????# """ #h """" # "Y" #? | | ????????????????# """ """ # """" # #? | | ????????????????# "S """ ; """" # #? | | ????????????????# """ """ #### """" # #? | | ????????????????# "" #??# """" " #? | | ????????????????# """ #??# """" # "" #? | | ????????????????# """@ #??# """" # "" #? | | ????????????????# """%s #??# # """ #? | | ????????????????# s #??# # """ #? | | ????????????????# Y ####+######## """ #? | | ????????????????# # #?# #? | | ????????????????###### ####### """ *[ #?#######?? | | ?????????????????????###?????# "T" #?????????? | | ?????????????????????????????# #?????????? | | ?????????????????????????????###########?????????? | | | | | | | | | | | | | | | | | | | | | | | | | | | | | | | | | +----------------------------------------------------+ Best States ------------- Heat Dissipation 50 Coolant Potential 65 Energy Generation 23 Energy Capacity 465 Matter Stores 300 Matter Capacity 300 Sight Range 22 Robot Scan Range 20 Terrain Scan Range 24 Terrain Scan Density 10 Power Amplification 20 Additional Mass Support 9 Base Temperature (-) 150 Armor Coverage 225 Core Shielding 30 Propulsion Shielding 33 Evasion (%) 68 Targeting Accuracy 12 Recoil Reduction 2 Overload Amplification 50 Overload Regulation 40 Offensive Hacking 30 Defensive Hacking 24 Item Schematics ----------------- Hacking Suite | -8/Materials | Scanalyzed System Shield | -8/Materials | Scanalyzed Adv. Signal Interpreter | -8/Materials | Scanalyzed Adv. Weight Redist. System | -8/Materials | Scanalyzed Field Propulsion Drive | -7/Factory | Hacked F-cell Engine | -7/Factory | Hacked Cmb. Airjet | -7/Recycling | Hacked Antigrav Array | -5/Factory | Hacked Robot Schematics ------------------ None Fabricated ------------ Field Propulsion Drive | x2 | -7/Factory Alien Tech Used ----------------- None Achievements -------------- Hunted Challenges ------------ None Game ------ Seed HeatCompositeFilter Manual? 0 Play Time 01:20:54 Cumulative 44.0 hours Start 2021.07.24 @ 18:36:43 End 2021.07.24 @ 21:41:58 Sessions 3 Manual Loads 0 Difficulty Rogue Special Mode None Game No. 67 Rogue 67 Adventurer 0 Explorer 0 Win Type - Total 0 Types 0/0/0/0/0/0/0/0/0 Lore% 26 Gallery% 43 Achievement% 28 Wizard Run 0 Options --------- ASCII 0 Keyboard 0 Movement Mouse Keybinds 0 Fullscreen 1 Font 16/Cog Map View 76x50 Tactical HUD 1 Map Filters NONE Filters NONE Steam 1 RUN: 2409eb79-c431-4a6f-a69d-c8a5aa5ecc99